fUSD/lending_fUSD_20260602
["ID","MTS","AMOUNT","RATE_DAILY","PERIOD"]
[423727225,1780336246000,-300.0,0.00014999,2]
[423727223,1780336246000,-300.0,0.00014999,2]
[423727229,1780336246000,-851765.42707214,0.00015,2]
[423727224,1780336246000,-781.56714637,0.00014999,2]
[423727227,1780336246000,-1723.0,0.00015,5]
[423727230,1780336246000,-4919.42581818,0.00015,2]
[423727226,1780336246000,-300.0,0.00014999,2]
[423727228,1780336246000,-1711.0,0.00015,5]
[423727232,1780336246000,-5083.69058376,0.00015,2]
[423727179,1780336246000,-500.0,0.00014999,2]
[423727221,1780336246000,-300.0,0.00014999,2]
[423727202,1780336246000,-500.0,0.00014999,2]
[423727217,1780336246000,-285.78148871,0.00014999,2]
[423727205,1780336246000,-500.0,0.00014999,2]
[423727231,1780336246000,-20503.00384075,0.00015,2]
[423727186,1780336246000,-500.0,0.00014999,2]
[423727187,1780336246000,-500.0,0.00014999,2]
[423727188,1780336246000,-500.0,0.00014999,2]
[423727196,1780336246000,-500.0,0.00014999,2]
[423727190,1780336246000,-500.0,0.00014999,2]
[423727203,1780336246000,-500.0,0.00014999,2]
[423727189,1780336246000,-500.0,0.00014999,2]
[423727191,1780336246000,-500.0,0.00014999,2]
[423727195,1780336246000,-500.0,0.00014999,2]
[423727194,1780336246000,-500.0,0.00014999,2]
[423727185,1780336246000,-500.0,0.00014999,2]
[423727192,1780336246000,-500.0,0.00014999,2]
[423727198,1780336246000,-500.0,0.00014999,2]
[423727207,1780336246000,-500.0,0.00014999,2]
[423727208,1780336246000,-500.0,0.00014999,2]
[423727197,1780336246000,-500.0,0.00014999,2]
[423727201,1780336246000,-500.0,0.00014999,2]
[423727204,1780336246000,-500.0,0.00014999,2]
[423727206,1780336246000,-500.0,0.00014999,2]
[423727200,1780336246000,-500.0,0.00014999,2]
[423727193,1780336246000,-500.0,0.00014999,2]
[423727199,1780336246000,-500.0,0.00014999,2]
[423727242,1780336247000,-4983.84366645,0.00015,2]
[423727240,1780336247000,-5849.15400294,0.00015,2]
[423727241,1780336247000,-1000.0,0.00015,2]
[423727239,1780336247000,-16068.11167834,0.00015,2]
[423727235,1780336247000,-500.0,0.00014999,2]
[423727237,1780336247000,-500.0,0.00014999,2]
[423727236,1780336247000,-500.0,0.00014999,2]
[423727234,1780336247000,-8851.42961439,0.00014735,2]
[423727243,1780336247000,-11266.62340077,0.00015,2]
[423727238,1780336247000,-205376.99919309,0.00015,2]
[423727244,1780336247000,-500.0,0.00014999,2]
[423727251,1780336247000,-500.0,0.00014403,2]
[423727247,1780336247000,-7598.72664835,0.00015,2]
[423727256,1780336247000,152.0,0.00011919,7]
[423727255,1780336247000,-11794.54087767,0.00015,2]
[423727253,1780336247000,-157.21090311,0.00014403,2]
[423727254,1780336247000,-3838.72051515,0.00015,2]
[423727245,1780336247000,-500.0,0.00014999,2]
[423727250,1780336247000,-500.0,0.00014403,2]
[423727249,1780336247000,-1042.31908783,0.00015,2]
[423727248,1780336247000,-506.0,0.00015,2]
[423727246,1780336247000,-395.14050061,0.00014999,2]
[423727252,1780336247000,-517.28567329,0.00014403,2]
[423727257,1780336375000,500.0,0.00013113,2]
[423727258,1780336487000,159.06,0.00013185,2]
[423727259,1780336619000,500.0,0.0003013,120]
[423727263,1780337075000,500.0,0.0003013,120]
[423727264,1780337147000,300.39,0.00013058,2]
[423727265,1780337152000,152.0,0.00011915,7]
[423727266,1780337153000,152.0,0.00011915,7]
[423727267,1780337154000,152.0,0.00011919,7]
[423727269,1780337155000,152.0,0.00030054,120]
[423727268,1780337155000,152.0,0.00013155,30]
[423727270,1780337197000,-150.0,0.00013365,2]
[423727271,1780337212000,-246.39,0.00013407,2]
[423727272,1780337250000,537.15321421,0.0001,2]
[423727275,1780337315000,1546.6,0.00013175,2]
[423727276,1780337341000,2000.0,0.00030134,120]
[423727277,1780337376000,-300.0,0.00013487,2]
[423727288,1780337432000,-300.0,0.00013606,2]
[423727298,1780337432000,-150.0,0.00013702,2]
[423727294,1780337432000,-332.98,0.00013666,2]
[423727290,1780337432000,-851.43661445,0.00013607,2]
[423727292,1780337432000,-266.12,0.00013613,2]
[423727287,1780337432000,-209.21103511,0.00013588,2]
[423727289,1780337432000,-166.56338555,0.00013607,2]
[423727285,1780337432000,-150.0,0.00013488,2]
[423727280,1780337432000,-264.97770365,0.00013488,2]
[423727293,1780337432000,-150.0,0.00013624,2]
[423727282,1780337432000,-232.42793293,0.00013488,2]
[423727283,1780337432000,-150.0,0.00013488,2]
[423727281,1780337432000,-256.70364359,0.00013488,2]
[423727284,1780337432000,-150.0,0.00013488,2]
[423727279,1780337432000,-1200.0,0.00013487,2]
[423727286,1780337432000,-150.0,0.00013488,2]
[423727291,1780337432000,-1206.05,0.00013608,2]
[423727304,1780337432000,-500.0,0.00013826,2]
[423727295,1780337432000,-843.12,0.00013687,2]
[423727297,1780337432000,-166.66,0.00013699,2]
[423727313,1780337432000,-822.21968653,0.00013827,2]
[423727312,1780337432000,-7209.45481345,0.00013827,2]
[423727311,1780337432000,-2509.82391698,0.00013827,2]
[423727309,1780337432000,-8746.99044034,0.00013827,2]
[423727307,1780337432000,-150.0,0.00013826,2]
[423727306,1780337432000,-236.47694369,0.00013826,2]
[423727302,1780337432000,-500.0,0.00013826,2]
[423727317,1780337432000,-390.37,0.00013827,2]
[423727305,1780337432000,-192.78546128,0.00013826,2]
[423727310,1780337432000,-1158.45634641,0.00013827,2]
[423727300,1780337432000,-150.0,0.0001376,2]
[423727303,1780337432000,-500.0,0.00013826,2]
[423727301,1780337432000,-500.0,0.00013826,2]
[423727299,1780337432000,-2000.0,0.00013712,2]
[423727296,1780337432000,-200.0,0.00013699,2]
[423727308,1780337432000,-21116.76816204,0.00013827,2]
[423727330,1780337438000,-166.66,0.00013836,2]
[423727327,1780337438000,-15792.46524051,0.00013827,2]
[423727325,1780337438000,-2213.56619374,0.00013827,2]
[423727326,1780337438000,-304.0,0.00013827,2]
[423727369,1780337439000,-350.0,0.00014649,2]
[423727367,1780337439000,-500.0,0.00014636,2]
[423727365,1780337439000,-159.06,0.00014573,2]
[423727370,1780337439000,-200.0,0.00014701,2]
[423727372,1780337439000,-200.0,0.00014701,2]
[423727364,1780337439000,-5175.3918882,0.00014571,2]
[423727361,1780337439000,-150.0,0.00014558,2]
[423727363,1780337439000,-14220.7328,0.00014561,2]
[423727371,1780337439000,-200.0,0.00014701,2]
[423727366,1780337439000,-150.0,0.00014578,2]
[423727376,1780337439000,-150.0,0.00014714,2]
[423727384,1780337439000,-643.46,0.00014721,2]
[423727374,1780337439000,-200.0,0.00014701,2]
[423727377,1780337439000,-500.0,0.00014721,2]
[423727385,1780337439000,-500.0,0.00014721,2]
[423727375,1780337439000,-5175.3918882,0.00014702,2]
[423727379,1780337439000,-500.0,0.00014721,2]
[423727381,1780337439000,-1739.74,0.00014721,2]
[423727380,1780337439000,-500.0,0.00014721,2]
[423727382,1780337439000,-500.0,0.00014721,2]
[423727383,1780337439000,-500.0,0.00014721,2]
[423727373,1780337439000,-200.0,0.00014701,2]
[423727386,1780337439000,-509.78543593,0.00014721,2]
[423727387,1780337439000,-500.0,0.00014726,2]
[423727378,1780337439000,-500.0,0.00014721,2]
[423727362,1780337439000,-2000.0,0.00014561,2]
[423727348,1780337439000,-5175.39188828,0.00014307,2]
[423727354,1780337439000,-5175.3918882,0.00014439,2]
[423727331,1780337439000,-159.06,0.00013879,2]
[423727333,1780337439000,-150.0,0.00013916,2]
[423727332,1780337439000,-150.0,0.00013896,2]
[423727335,1780337439000,-166.66,0.00013973,2]
[423727334,1780337439000,-500.0,0.00013918,2]
[423727337,1780337439000,-150.0,0.00014033,2]
[423727338,1780337439000,-166.66,0.0001411,2]
[423727343,1780337439000,-234.18931195,0.00014278,2]
[423727345,1780337439000,-151.67,0.000143,2]
[423727347,1780337439000,-150.0,0.00014305,2]
[423727344,1780337439000,-152.0,0.00014283,2]
[423727336,1780337439000,-250.0,0.00014,2]
[423727346,1780337439000,-347.5312,0.00014304,2]
[423727342,1780337439000,-159.32367271,0.0001425,2]
[423727339,1780337439000,-150.0,0.0001413,2]
[423727340,1780337439000,-150.0,0.00014169,2]
[423727341,1780337439000,-166.66,0.00014247,2]
[423727390,1780337439000,-500.0,0.00014726,2]
[423727352,1780337439000,-500.0,0.00014411,2]
[423727359,1780337439000,-350.0,0.00014504,2]
[423727351,1780337439000,-166.66,0.00014384,2]
[423727350,1780337439000,-5175.3918882,0.00014373,2]
[423727360,1780337439000,-5175.3918882,0.00014505,2]
[423727356,1780337439000,-150.0,0.00014441,2]
[423727349,1780337439000,-150.0,0.00014344,2]
[423727358,1780337439000,-2500.0,0.00014461,2]
[423727389,1780337439000,-500.0,0.00014726,2]
[423727368,1780337439000,-5175.3918882,0.00014636,2]
[423727394,1780337439000,-350.0,0.0001477,2]
[423727422,1780337439000,-2500.0,0.00014836,2]
[423727424,1780337439000,-2500.0,0.00014836,2]
[423727421,1780337439000,-2500.0,0.00014836,2]
[423727423,1780337439000,-2500.0,0.00014836,2]
[423727426,1780337439000,-300.0,0.00014836,2]
[423727428,1780337439000,-300.0,0.00014836,2]
[423727429,1780337439000,-300.0,0.00014836,2]
[423727430,1780337439000,-300.0,0.00014836,2]
[423727432,1780337439000,-1234.46345517,0.00014845,2]
[423727431,1780337439000,-44959.34349644,0.00014844,2]
[423727434,1780337439000,-500.0,0.00014845,2]
[423727433,1780337439000,-500.0,0.00014845,2]
[423727435,1780337439000,-500.0,0.00014845,2]
[423727436,1780337439000,-1739.74,0.00014845,2]
[423727438,1780337439000,-500.0,0.00014845,2]
[423727442,1780337439000,-500.0,0.00014849,2]
[423727443,1780337439000,-512.65,0.00014849,2]
[423727439,1780337439000,-7377.80360675,0.00014846,2]
[423727441,1780337439000,-500.0,0.00014849,2]
[423727437,1780337439000,-500.0,0.00014845,2]
[423727440,1780337439000,-878.62,0.00014849,2]
[423727444,1780337439000,-500.0,0.00014849,2]
[423727446,1780337439000,-500.0,0.00014849,2]
[423727445,1780337439000,-500.0,0.00014849,2]
[423727392,1780337439000,-835.188,0.00014726,2]
[423727425,1780337439000,-2500.0,0.00014836,2]
[423727420,1780337439000,-1680.0,0.00014835,2]
[423727427,1780337439000,-300.0,0.00014836,2]
[423727412,1780337439000,-639.96506873,0.00014828,2]
[423727418,1780337439000,-44959.34349644,0.00014833,2]
[423727396,1780337439000,-581.17453971,0.00014791,2]
[423727393,1780337439000,-5175.3918882,0.00014768,2]
[423727388,1780337439000,-500.0,0.00014726,2]
[423727395,1780337439000,-150.0,0.00014772,2]
[423727397,1780337439000,-500.0,0.00014791,2]
[423727398,1780337439000,-500.0,0.00014791,2]
[423727403,1780337439000,-500.0,0.00014791,2]
[423727400,1780337439000,-1739.74,0.00014791,2]
[423727401,1780337439000,-500.0,0.00014791,2]
[423727406,1780337439000,-350.0,0.00014802,2]
[423727405,1780337439000,-1234.46345519,0.000148,2]
[423727399,1780337439000,-500.0,0.00014791,2]
[423727391,1780337439000,-500.0,0.00014726,2]
[423727402,1780337439000,-554.38885746,0.00014791,2]
[423727404,1780337439000,-44959.34349644,0.00014799,2]
[423727413,1780337439000,-500.0,0.00014828,2]
[423727410,1780337439000,-547.95,0.00014828,2]
[423727411,1780337439000,-500.0,0.00014828,2]
[423727414,1780337439000,-500.0,0.00014828,2]
[423727416,1780337439000,-500.0,0.00014828,2]
[423727417,1780337439000,-643.46,0.00014829,2]
[423727408,1780337439000,-44959.34349644,0.00014821,2]
[423727419,1780337439000,-5175.3918882,0.00014834,2]
[423727409,1780337439000,-642.24,0.00014828,2]
[423727407,1780337439000,-44959.34349644,0.0001481,2]
[423727415,1780337439000,-645.86663214,0.00014828,2]
[423727488,1780337440000,-9615.06231306,0.000149,2]
[423727490,1780337440000,-15911.04746683,0.000149,2]
[423727482,1780337440000,-14981.95620103,0.000149,3]
[423727477,1780337440000,-500.0,0.00014899,2]
[423727483,1780337440000,-25000.0,0.000149,3]
[423727491,1780337440000,-621.57350825,0.000149,2]
[423727481,1780337440000,-2991.32472806,0.000149,2]
[423727475,1780337440000,-10000.0,0.00014899,2]
[423727478,1780337440000,-500.0,0.00014899,2]
[423727489,1780337440000,-25000.0,0.000149,3]
[423727480,1780337440000,-275.90819985,0.00014899,2]
[423727486,1780337440000,-7377.80360675,0.000149,2]
[423727495,1780337440000,-255.0,0.00014946,2]
[423727485,1780337440000,-44959.34349644,0.000149,2]
[423727487,1780337440000,-227.16495701,0.000149,2]
[423727492,1780337440000,-901.85694881,0.000149,2]
[423727493,1780337440000,-420.0,0.00014912,2]
[423727494,1780337440000,-591.0,0.00014932,2]
[423727496,1780337440000,-500.94201781,0.00014953,2]
[423727497,1780337440000,-499.0,0.00014959,2]
[423727501,1780337440000,-209.35689879,0.00014979,2]
[423727500,1780337440000,-820.17,0.00014976,2]
[423727502,1780337440000,-177.03,0.00014985,2]
[423727499,1780337440000,-172.47512054,0.00014976,2]
[423727476,1780337440000,-500.0,0.00014899,2]
[423727484,1780337440000,-5175.3918882,0.000149,2]
[423727474,1780337440000,-250.0,0.00014899,2]
[423727498,1780337440000,-2212.70631851,0.00014976,2]
[423727472,1780337440000,-643.46,0.00014898,2]
[423727447,1780337440000,-500.0,0.00014849,2]
[423727448,1780337440000,-9290.40975666,0.0001485,2]
[423727450,1780337440000,-500.0,0.00014853,2]
[423727449,1780337440000,-150.0,0.0001485,2]
[423727454,1780337440000,-7377.80360675,0.00014873,2]
[423727455,1780337440000,-163.43660373,0.00014876,2]
[423727451,1780337440000,-44959.34349644,0.00014855,2]
[423727452,1780337440000,-643.46,0.00014864,2]
[423727453,1780337440000,-44959.34349644,0.00014866,2]
[423727467,1780337440000,-227.16495703,0.00014889,2]
[423727457,1780337440000,-200.0,0.00014879,2]
[423727458,1780337440000,-200.0,0.00014879,2]
[423727471,1780337440000,-227.16495701,0.00014895,2]
[423727456,1780337440000,-44959.34349644,0.00014878,2]
[423727463,1780337440000,-200.0,0.0001488,2]
[423727462,1780337440000,-200.0,0.0001488,2]
[423727464,1780337440000,-44959.34349644,0.00014889,2]
[423727461,1780337440000,-200.0,0.0001488,2]
[423727465,1780337440000,-3277.492,0.00014889,2]
[423727466,1780337440000,-186.424,0.00014889,2]
[423727460,1780337440000,-163.0,0.0001488,2]
[423727468,1780337440000,-1234.46345517,0.00014889,2]
[423727473,1780337440000,-1500.0,0.00014899,2]
[423727479,1780337440000,-1739.74,0.00014899,2]
[423727470,1780337440000,-25000.0,0.00014891,3]
[423727469,1780337440000,-5000.0,0.00014889,2]
[423727459,1780337440000,-200.0,0.0001488,2]
[423727504,1780337440000,-150.0,0.00014986,2]
[423727559,1780337440000,-151.0,0.00014989,2]
[423727503,1780337440000,-166783.230829,0.00014986,2]
[423727537,1780337440000,-500.0,0.00014988,2]
[423727536,1780337440000,-500.0,0.00014988,2]
[423727540,1780337440000,-500.0,0.00014988,2]
[423727538,1780337440000,-500.0,0.00014988,2]
[423727542,1780337440000,-382.83023992,0.00014988,2]
[423727541,1780337440000,-500.0,0.00014988,2]
[423727539,1780337440000,-500.0,0.00014988,2]
[423727549,1780337440000,-162.6658277,0.00014989,2]
[423727546,1780337440000,-326250.8053561,0.00014989,2]
[423727545,1780337440000,-178585.249202,0.00014989,2]
[423727547,1780337440000,-9017.6044798,0.00014989,2]
[423727543,1780337440000,-500.0,0.00014988,2]
[423727548,1780337440000,-55594.4102763,0.00014989,2]
[423727557,1780337440000,-151.0,0.00014989,2]
[423727550,1780337440000,-151.0,0.00014989,2]
[423727551,1780337440000,-151.0,0.00014989,2]
[423727552,1780337440000,-151.0,0.00014989,2]
[423727554,1780337440000,-151.0,0.00014989,2]
[423727556,1780337440000,-151.0,0.00014989,2]
[423727553,1780337440000,-151.0,0.00014989,2]
[423727561,1780337440000,-151.0,0.00014989,2]
[423727558,1780337440000,-151.0,0.00014989,2]
[423727555,1780337440000,-151.0,0.00014989,2]
[423727560,1780337440000,-151.0,0.00014989,2]
[423727514,1780337440000,-278.69604194,0.00014986,2]
[423727535,1780337440000,-500.0,0.00014988,2]
[423727534,1780337440000,-500.0,0.00014988,2]
[423727544,1780337440000,-500.0,0.00014988,2]
[423727529,1780337440000,-512.65,0.00014988,2]
[423727533,1780337440000,-291.67528041,0.00014988,2]
[423727505,1780337440000,-150.0,0.00014986,2]
[423727506,1780337440000,-150.0,0.00014986,2]
[423727509,1780337440000,-150.0,0.00014986,2]
[423727507,1780337440000,-150.0,0.00014986,2]
[423727511,1780337440000,-151.0,0.00014986,2]
[423727513,1780337440000,-294.32751149,0.00014986,2]
[423727512,1780337440000,-151.0,0.00014986,2]
[423727510,1780337440000,-150.0,0.00014986,2]
[423727516,1780337440000,-296.54389221,0.00014986,2]
[423727522,1780337440000,-642.24,0.00014988,2]
[423727518,1780337440000,-878.62,0.00014988,2]
[423727515,1780337440000,-273.83936132,0.00014986,2]
[423727508,1780337440000,-150.0,0.00014986,2]
[423727525,1780337440000,-377.06035753,0.00014988,2]
[423727530,1780337440000,-500.0,0.00014988,2]
[423727531,1780337440000,-500.0,0.00014988,2]
[423727528,1780337440000,-512.65,0.00014988,2]
[423727526,1780337440000,-500.0,0.00014988,2]
[423727527,1780337440000,-500.0,0.00014988,2]
[423727524,1780337440000,-547.95,0.00014988,2]
[423727532,1780337440000,-500.0,0.00014988,2]
[423727517,1780337440000,-878.62,0.00014988,2]
[423727523,1780337440000,-547.95,0.00014988,2]
[423727519,1780337440000,-500.0,0.00014988,2]
[423727520,1780337440000,-500.0,0.00014988,2]
[423727521,1780337440000,-642.24,0.00014988,2]
[423727602,1780337441000,-500.0,0.00014999,2]
[423727609,1780337441000,-500.0,0.00014999,2]
[423727599,1780337441000,-500.0,0.00014999,2]
[423727600,1780337441000,-500.0,0.00014999,2]
[423727601,1780337441000,-500.0,0.00014999,2]
[423727606,1780337441000,-500.0,0.00014999,2]
[423727593,1780337441000,-500.0,0.00014999,2]
[423727604,1780337441000,-289.98034371,0.00014999,2]
[423727598,1780337441000,-500.0,0.00014999,2]
[423727592,1780337441000,-1642.0,0.00014999,5]
[423727590,1780337441000,-500.0,0.00014998,2]
[423727591,1780337441000,-500.0,0.00014998,2]
[423727610,1780337441000,-500.0,0.00014999,2]
[423727603,1780337441000,-500.0,0.00014999,2]
[423727616,1780337441000,-500.0,0.00014999,2]
[423727607,1780337441000,-500.0,0.00014999,2]
[423727605,1780337441000,-500.0,0.00014999,2]
[423727611,1780337441000,-500.0,0.00014999,2]
[423727614,1780337441000,-500.0,0.00014999,2]
[423727613,1780337441000,-500.0,0.00014999,2]
[423727621,1780337441000,-500.0,0.00014999,2]
[423727622,1780337441000,-500.0,0.00014999,2]
[423727615,1780337441000,-500.0,0.00014999,2]
[423727618,1780337441000,-500.0,0.00014999,2]
[423727612,1780337441000,-500.0,0.00014999,2]
[423727617,1780337441000,-500.0,0.00014999,2]
[423727619,1780337441000,-500.0,0.00014999,2]
[423727596,1780337441000,-500.0,0.00014999,2]
[423727608,1780337441000,-500.0,0.00014999,2]
[423727587,1780337441000,-500.0,0.00014998,2]
[423727563,1780337441000,-151.0,0.00014989,2]
[423727588,1780337441000,-500.0,0.00014998,2]
[423727562,1780337441000,-151.0,0.00014989,2]
[423727564,1780337441000,-151.0,0.00014989,2]
[423727624,1780337441000,-301.98,0.00014999,2]
[423727567,1780337441000,-151.0,0.00014989,2]
[423727572,1780337441000,-151.0,0.00014989,2]
[423727565,1780337441000,-151.0,0.00014989,2]
[423727566,1780337441000,-151.0,0.00014989,2]
[423727569,1780337441000,-151.0,0.00014989,2]
[423727571,1780337441000,-151.0,0.00014989,2]
[423727570,1780337441000,-151.0,0.00014989,2]
[423727568,1780337441000,-151.0,0.00014989,2]
[423727574,1780337441000,-151.0,0.00014989,2]
[423727585,1780337441000,-410.30161227,0.00014998,2]
[423727597,1780337441000,-500.0,0.00014999,2]
[423727575,1780337441000,-279.960539,0.00014989,2]
[423727573,1780337441000,-151.0,0.00014989,2]
[423727576,1780337441000,-500.0,0.00014989,2]
[423727577,1780337441000,-151.0,0.00014989,2]
[423727581,1780337441000,-878.62,0.00014998,2]
[423727579,1780337441000,-151.950051,0.00014997,2]
[423727583,1780337441000,-642.24,0.00014998,2]
[423727578,1780337441000,-151.0,0.00014989,2]
[423727580,1780337441000,-643.46,0.00014998,2]
[423727582,1780337441000,-500.0,0.00014998,2]
[423727586,1780337441000,-512.65,0.00014998,2]
[423727589,1780337441000,-500.0,0.00014998,2]
[423727594,1780337441000,-500.0,0.00014999,2]
[423727595,1780337441000,-500.0,0.00014999,2]
[423727584,1780337441000,-547.95,0.00014998,2]
[423727623,1780337441000,-469.72846755,0.00014999,2]
[423727635,1780337441000,-1739.74,0.00014999,2]
[423727690,1780337441000,-500.0,0.00014999,2]
[423727655,1780337441000,-643.46,0.00014999,2]
[423727659,1780337441000,-643.46,0.00014999,2]
[423727667,1780337441000,-643.50661029,0.00014999,2]
[423727668,1780337441000,-878.62,0.00014999,2]
[423727666,1780337441000,-643.46,0.00014999,2]
[423727669,1780337441000,-878.62,0.00014999,2]
[423727674,1780337441000,-878.62,0.00014999,2]
[423727673,1780337441000,-878.62,0.00014999,2]
[423727670,1780337441000,-878.62,0.00014999,2]
[423727677,1780337441000,-878.62,0.00014999,2]
[423727678,1780337441000,-878.62,0.00014999,2]
[423727675,1780337441000,-878.62,0.00014999,2]
[423727679,1780337441000,-878.62,0.00014999,2]
[423727651,1780337441000,-643.46,0.00014999,2]
[423727671,1780337441000,-878.62,0.00014999,2]
[423727681,1780337441000,-878.62,0.00014999,2]
[423727691,1780337441000,-181.33557319,0.00014999,2]
[423727692,1780337441000,-642.24,0.00014999,2]
[423727683,1780337441000,-878.62,0.00014999,2]
[423727680,1780337441000,-878.62,0.00014999,2]
[423727682,1780337441000,-878.62,0.00014999,2]
[423727684,1780337441000,-878.62,0.00014999,2]
[423727688,1780337441000,-500.0,0.00014999,2]
[423727685,1780337441000,-878.62,0.00014999,2]
[423727687,1780337441000,-878.72191452,0.00014999,2]
[423727634,1780337441000,-1739.74,0.00014999,2]
[423727689,1780337441000,-500.0,0.00014999,2]
[423727686,1780337441000,-878.62,0.00014999,2]
[423727676,1780337441000,-878.62,0.00014999,2]
[423727653,1780337441000,-643.46,0.00014999,2]
[423727672,1780337441000,-878.62,0.00014999,2]
[423727649,1780337441000,-643.46,0.00014999,2]
[423727626,1780337441000,-1739.74,0.00014999,2]
[423727657,1780337441000,-643.46,0.00014999,2]
[423727625,1780337441000,-1739.74,0.00014999,2]
[423727628,1780337441000,-1739.74,0.00014999,2]
[423727631,1780337441000,-1739.74,0.00014999,2]
[423727633,1780337441000,-1739.74,0.00014999,2]
[423727629,1780337441000,-1739.74,0.00014999,2]
[423727630,1780337441000,-1739.74,0.00014999,2]
[423727632,1780337441000,-1739.74,0.00014999,2]
[423727636,1780337441000,-1739.74,0.00014999,2]
[423727639,1780337441000,-1739.74,0.00014999,2]
[423727638,1780337441000,-1739.74,0.00014999,2]
[423727640,1780337441000,-1739.74,0.00014999,2]
[423727641,1780337441000,-1739.74,0.00014999,2]
[423727648,1780337441000,-643.46,0.00014999,2]
[423727627,1780337441000,-1739.74,0.00014999,2]
[423727644,1780337441000,-1739.9222324,0.00014999,2]
[423727642,1780337441000,-1739.74,0.00014999,2]
[423727664,1780337441000,-643.46,0.00014999,2]
[423727663,1780337441000,-643.46,0.00014999,2]
[423727661,1780337441000,-643.46,0.00014999,2]
[423727662,1780337441000,-643.46,0.00014999,2]
[423727660,1780337441000,-643.46,0.00014999,2]
[423727665,1780337441000,-643.46,0.00014999,2]
[423727645,1780337441000,-643.46,0.00014999,2]
[423727646,1780337441000,-643.46,0.00014999,2]
[423727647,1780337441000,-643.46,0.00014999,2]
[423727637,1780337441000,-1739.74,0.00014999,2]
[423727643,1780337441000,-1739.74,0.00014999,2]
[423727650,1780337441000,-643.46,0.00014999,2]
[423727733,1780337442000,-512.65,0.00014999,2]
[423727729,1780337442000,-547.95,0.00014999,2]
[423727731,1780337442000,-548.10030719,0.00014999,2]
[423727740,1780337442000,-512.65,0.00014999,2]
[423727719,1780337442000,-547.95,0.00014999,2]
[423727726,1780337442000,-547.95,0.00014999,2]
[423727725,1780337442000,-547.95,0.00014999,2]
[423727720,1780337442000,-547.95,0.00014999,2]
[423727727,1780337442000,-547.95,0.00014999,2]
[423727728,1780337442000,-547.95,0.00014999,2]
[423727732,1780337442000,-512.65,0.00014999,2]
[423727730,1780337442000,-547.95,0.00014999,2]
[423727736,1780337442000,-512.65,0.00014999,2]
[423727741,1780337442000,-512.65,0.00014999,2]
[423727739,1780337442000,-512.65,0.00014999,2]
[423727737,1780337442000,-512.65,0.00014999,2]
[423727734,1780337442000,-512.65,0.00014999,2]
[423727735,1780337442000,-512.65,0.00014999,2]
[423727743,1780337442000,-512.65,0.00014999,2]
[423727742,1780337442000,-512.65,0.00014999,2]
[423727744,1780337442000,-512.65,0.00014999,2]
[423727752,1780337442000,-152.20324461,0.00014999,2]
[423727746,1780337442000,-512.65,0.00014999,2]
[423727748,1780337442000,-512.65,0.00014999,2]
[423727751,1780337442000,-512.87161067,0.00014999,2]
[423727723,1780337442000,-547.95,0.00014999,2]
[423727738,1780337442000,-512.65,0.00014999,2]
[423727718,1780337442000,-547.95,0.00014999,2]
[423727745,1780337442000,-512.65,0.00014999,2]
[423727721,1780337442000,-547.95,0.00014999,2]